fUST/lending_fUST_20250531
["ID","MTS","AMOUNT","RATE_DAILY","PERIOD"]
[363268096,1748655038616,-430.0,0.00016438,2]
[363268097,1748655038625,-430.0,0.00016438,2]
[363268098,1748655038634,-430.0,0.00016438,2]
[363268099,1748655038643,-405.8551719,0.00016438,2]
[363268100,1748655038652,-430.0,0.00016438,2]
[363268101,1748655038662,-430.0,0.00016438,2]
[363268102,1748655038671,-500.0,0.00016438,2]
[363268103,1748655038681,-437.16,0.00016438,2]
[363268104,1748655038691,-1079.83,0.00016438,2]
[363268105,1748655038700,-430.0,0.00016438,2]
[363268106,1748655038710,-430.0,0.00016438,2]
[363268107,1748655038720,-430.0,0.00016438,2]
[363268108,1748655038729,-731.92,0.00016438,2]
[363268109,1748655038742,-430.0,0.00016438,2]
[363268110,1748655038752,-473.34341324,0.00016438,2]
[363268111,1748655038761,-430.0,0.00016438,2]
[363268112,1748655038771,-1192.23,0.00016438,2]
[363268113,1748655038781,-430.0,0.00016438,2]
[363268114,1748655038791,-430.0,0.00016438,2]
[363268115,1748655038801,-430.0,0.00016438,2]
[363268116,1748655038810,-1386.76,0.00016438,2]
[363268117,1748655038820,-430.0,0.00016438,2]
[363268118,1748655038829,-822.1,0.00016438,2]
[363268119,1748655038839,-447.59,0.00016438,2]
[363268120,1748655038849,-430.0,0.00016438,2]
[363268121,1748655038858,-2177.62,0.00016438,2]
[363268122,1748655038867,-430.0,0.00016438,2]
[363268123,1748655038877,-430.0,0.00016438,2]
[363268124,1748655038886,-430.0,0.00016438,2]
[363268125,1748655038895,-514.27,0.00016438,2]
[363268126,1748655038905,-2258.91,0.00016438,2]
[363268127,1748655038915,-430.0,0.00016438,2]
[363268128,1748655038924,-1584.95,0.00016438,2]
[363268129,1748655038934,-430.0,0.00016438,2]
[363268130,1748655038943,-1831.98,0.00016438,2]
[363268131,1748655038953,-430.0,0.00016438,2]
[363268132,1748655038962,-430.0,0.00016438,2]
[363268133,1748655038971,-430.0,0.00016438,2]
[363268134,1748655038981,-430.0,0.00016438,2]
[363268135,1748655038991,-430.0,0.00016438,2]
[363268136,1748655039000,-430.0,0.00016438,2]
[363268137,1748655039010,-855.96,0.00016438,2]
[363268138,1748655039020,-858.06,0.00016438,2]
[363268139,1748655039029,-673.8,0.00016438,2]
[363268140,1748655039039,-430.0,0.00016438,2]
[363268141,1748655039049,-430.0,0.00016438,2]
[363268142,1748655039058,-430.0,0.00016438,2]
[363268143,1748655039068,-430.0,0.00016438,2]
[363268144,1748655039077,-430.0,0.00016438,2]
[363268145,1748655039086,-430.0,0.00016438,2]
[363268146,1748655039096,-430.0,0.00016438,2]
[363268147,1748655039106,-430.0,0.00016438,2]
[363268148,1748655039115,-430.0,0.00016438,2]
[363268149,1748655039125,-969.95,0.00016438,2]
[363268150,1748655039134,-967.95,0.00016438,2]
[363268151,1748655039144,-430.0,0.00016438,2]
[363268152,1748655039155,-430.0,0.00016438,2]
[363268153,1748655039164,-430.0,0.00016438,2]
[363268154,1748655039174,-1081.46,0.00016438,2]
[363268155,1748655039184,-1861.23,0.00016438,2]
[363268156,1748655039193,-170.56437743,0.00016438,2]
[363268157,1748655039203,-430.0,0.00016438,2]
[363268158,1748655039212,-500.0,0.0001671,2]
[363268159,1748655039221,-500.0,0.0001671,2]
[363268160,1748655039230,-500.0,0.0001671,2]
[363268161,1748655039241,-476.81591467,0.0001671,2]
[363268162,1748655039250,-500.0,0.0001671,2]
[363268163,1748655039260,-500.0,0.0001671,2]
[363268164,1748655039270,-500.0,0.0001671,2]
[363268165,1748655039280,-500.0,0.0001671,2]
[363268166,1748655039290,-500.0,0.0001671,2]
[363268167,1748655039299,-500.0,0.0001671,2]
[363268168,1748655039309,-500.0,0.0001671,2]
[363268169,1748655039319,-500.0,0.0001671,2]
[363268170,1748655039328,-500.0,0.0001671,2]
[363268171,1748655039338,-500.0,0.0001671,2]
[363268172,1748655039347,-430.0,0.00016711,2]
[363268173,1748655039357,-430.0,0.00016711,2]
[363268174,1748655039366,-430.0,0.00016711,2]
[363268175,1748655039375,-430.0,0.00016711,2]
[363268176,1748655039385,-430.0,0.00016711,2]
[363268177,1748655039397,-430.0,0.00016711,2]
[363268178,1748655039414,-430.0,0.00016711,2]
[363268179,1748655039423,-430.0,0.00016711,2]
[363268180,1748655039433,-430.0,0.00016711,2]
[363268181,1748655039443,-430.0,0.00016711,2]
[363268182,1748655039452,-430.0,0.00016711,2]
[363268184,1748655039461,-430.0,0.00016711,2]
[363268185,1748655039470,-430.0,0.00016711,2]
[363268186,1748655039480,-415.04103203,0.00016711,2]
[363268187,1748655039492,-300.0,0.00016711,2]
[363268188,1748655039502,-197.48797932,0.00016711,2]
[363268189,1748655039511,-430.0,0.00016711,2]
[363268191,1748655039520,-430.0,0.00016711,2]
[363268193,1748655039533,-430.0,0.00016711,2]
[363268195,1748655039542,-430.0,0.00016711,2]
[363268197,1748655039551,-425.77643324,0.00016711,2]
[363268199,1748655039561,-430.0,0.00016711,2]
[363268200,1748655039570,-434.5375836,0.00016711,2]
[363268202,1748655039579,-430.0,0.00016711,2]
[363268203,1748655039589,-430.0,0.00016711,2]
[363268204,1748655039598,-430.0,0.00016711,2]
[363268205,1748655039608,-310.90633743,0.00016711,2]
[363268206,1748655039617,-430.0,0.00016711,2]
[363268207,1748655039627,-430.0,0.00016711,2]
[363268208,1748655039636,-156.15885545,0.00016711,2]
[363268209,1748655039645,-371.18188898,0.00016711,2]
[363268211,1748655039655,-1000.0,0.00016711,2]
[363268212,1748655039664,-1000.0,0.00016711,2]
[363268213,1748655039673,-1000.0,0.00016711,2]
[363268214,1748655039682,-430.0,0.00016711,2]
[363268215,1748655039691,-430.0,0.00016711,2]
[363268216,1748655039700,-430.0,0.00016711,2]
[363268217,1748655039709,-1621.26,0.00016711,2]
[363268218,1748655039718,-430.0,0.00016711,2]
[363268219,1748655039727,-430.0,0.00016711,2]
[363268220,1748655039738,-430.0,0.00016711,2]
[363268221,1748655039748,-430.0,0.00016711,2]
[363268222,1748655039758,-430.0,0.00016711,2]
[363268223,1748655039767,-430.0,0.00016711,2]
[363268224,1748655039776,-430.0,0.00016711,2]
[363268225,1748655039786,-430.0,0.00016711,2]
[363268227,1748655039795,-430.0,0.00016711,2]
[363268228,1748655039805,-430.0,0.00016711,2]
[363268229,1748655039814,-548.33,0.00016711,2]
[363268230,1748655039823,-421.00872241,0.00016711,2]
[363268231,1748655039833,-1039.91,0.00016711,2]
[363268232,1748655039842,-418.13,0.00016711,2]
[363268233,1748655039853,-430.0,0.00016711,2]
[363268234,1748655039862,-430.0,0.00016711,2]
[363268235,1748655039871,-830.97,0.00016711,2]
[363268236,1748655039881,-430.0,0.00016712,2]
[363268237,1748655039890,-430.0,0.00016712,2]
[363268238,1748655039899,-151.65,0.00016712,2]
[363268239,1748655039908,-430.0,0.00016712,2]
[363268240,1748655039917,-430.0,0.00016712,2]
[363268241,1748655039926,-430.0,0.00016712,2]
[363268242,1748655039935,-505.29,0.00016712,2]
[363268243,1748655039945,-430.0,0.00016712,2]
[363268244,1748655039954,-158.92,0.00016712,2]
[363268245,1748655039963,-430.0,0.00016712,2]
[363268246,1748655039972,-1079.83,0.00016712,2]
[363268248,1748655039981,-430.0,0.00016712,2]
[363268250,1748655039992,-430.0,0.00016712,2]
[363268252,1748655040003,-731.92,0.00016712,2]
[363268253,1748655040019,-430.0,0.00016712,2]
[363268255,1748655040030,-430.0,0.00016712,2]
[363268256,1748655040039,-1192.23,0.00016712,2]
[363268257,1748655040048,-430.0,0.00016712,2]
[363268258,1748655040058,-430.0,0.00016712,2]
[363268260,1748655040067,-430.0,0.00016712,2]
[363268262,1748655040077,-1386.76,0.00016712,2]
[363268263,1748655040086,-430.0,0.00016712,2]
[363268264,1748655040095,-822.1,0.00016712,2]
[363268265,1748655040104,-430.0,0.00016712,2]
[363268266,1748655040114,-447.59,0.00016712,2]
[363268267,1748655040124,-430.0,0.00016712,2]
[363268268,1748655040133,-2177.62,0.00016712,2]
[363268269,1748655040142,-430.0,0.00016712,2]
[363268270,1748655040152,-430.0,0.00016712,2]
[363268271,1748655040161,-514.27,0.00016712,2]
[363268272,1748655040170,-2258.91,0.00016712,2]
[363268273,1748655040179,-1584.95,0.00016712,2]
[363268275,1748655040188,-430.0,0.00016712,2]
[363268277,1748655040197,-1831.98,0.00016712,2]
[363268278,1748655040207,-430.0,0.00016712,2]
[363268279,1748655040216,-430.0,0.00016712,2]
[363268280,1748655040225,-430.0,0.00016712,2]
[363268281,1748655040236,-430.0,0.00016712,2]
[363268282,1748655040245,-855.96,0.00016712,2]
[363268283,1748655040254,-858.06,0.00016712,2]
[363268284,1748655040263,-673.8,0.00016712,2]
[363268285,1748655040272,-430.0,0.00016712,2]
[363268286,1748655040281,-430.0,0.00016712,2]
[363268287,1748655040290,-430.0,0.00016712,2]
[363268288,1748655040434,-430.0,0.00016712,2]
[363268289,1748655040443,-430.0,0.00016712,2]
[363268290,1748655040452,-430.0,0.00016712,2]
[363268291,1748655040461,-430.0,0.00016712,2]
[363268292,1748655040470,-969.95,0.00016712,2]
[363268293,1748655040479,-967.95,0.00016712,2]
[363268294,1748655040490,-430.0,0.00016712,2]
[363268295,1748655040499,-430.0,0.00016712,2]
[363268296,1748655040508,-430.0,0.00016712,2]
[363268297,1748655040517,-1081.46,0.00016712,2]
[363268298,1748655040530,-1861.23,0.00016712,2]
[363268299,1748655040539,-430.0,0.00016712,2]
[363268300,1748655040549,-1000.0,0.00016799,2]
[363268301,1748655040557,-153.64622476,0.000168,2]
[363268302,1748655040567,-1000.0,0.00016971,2]
[363268303,1748655040575,-1000.0,0.00016985,2]
[363268304,1748655040584,-1000.0,0.00016985,2]
[363268305,1748655040593,-1000.0,0.00016985,2]
[363268306,1748655040602,-430.0,0.00016985,2]
[363268307,1748655040612,-430.0,0.00016985,2]
[363268308,1748655040621,-1621.26,0.00016985,2]
[363268309,1748655040630,-430.0,0.00016985,2]
[363268310,1748655040639,-430.0,0.00016985,2]
[363268311,1748655040648,-548.33,0.00016985,2]
[363268312,1748655040657,-1039.91,0.00016985,2]
[363268313,1748655040666,-430.0,0.00016985,2]
[363268314,1748655040675,-830.97,0.00016985,2]
[363268315,1748655040684,-430.0,0.00016986,2]
[363268316,1748655040693,-430.0,0.00016986,2]
[363268317,1748655040703,-430.0,0.00016986,2]
[363268318,1748655040711,-430.0,0.00016986,2]
[363268319,1748655040721,-430.0,0.00016986,2]
[363268320,1748655040730,-430.0,0.00016986,2]
[363268321,1748655040740,-1079.83,0.00016986,2]
[363268322,1748655040749,-430.0,0.00016986,2]
[363268323,1748655040758,-731.92,0.00016986,2]
[363268324,1748655040767,-430.0,0.00016986,2]
[363268325,1748655040776,-430.0,0.00016986,2]
[363268326,1748655040784,-1192.23,0.00016986,2]
[363268327,1748655040793,-430.0,0.00016986,2]
[363268328,1748655040802,-430.0,0.00016986,2]
[363268329,1748655040811,-311.56,0.00016986,2]
[363268330,1748655040820,-1386.76,0.00016986,2]
[363268331,1748655040829,-430.0,0.00016986,2]
[363268332,1748655040838,-822.1,0.00016986,2]
[363268333,1748655040848,-430.0,0.00016986,2]
[363268334,1748655040857,-447.59,0.00016986,2]
[363268335,1748655040866,-430.0,0.00016986,2]
[363268336,1748655040875,-2177.62,0.00016986,2]
[363268337,1748655040885,-430.0,0.00016986,2]
[363268338,1748655040895,-430.0,0.00016986,2]
[363268339,1748655040904,-514.27,0.00016986,2]
[363268340,1748655040916,-2258.91,0.00016986,2]
[363268341,1748655040928,-1584.95,0.00016986,2]
[363268342,1748655040938,-430.0,0.00016986,2]
[363268343,1748655040948,-1831.98,0.00016986,2]
[363268344,1748655040958,-430.0,0.00016986,2]
[363268345,1748655040969,-430.0,0.00016986,2]
[363268346,1748655040980,-855.96,0.00016986,2]
[363268347,1748655040990,-858.06,0.00016986,2]
[363268348,1748655041000,-673.8,0.00016986,2]
[363268349,1748655041009,-430.0,0.00016986,2]
[363268350,1748655041019,-430.0,0.00016986,2]
[363268351,1748655041028,-430.0,0.00016986,2]
[363268352,1748655041046,-430.0,0.00016986,2]
[363268353,1748655041055,-430.0,0.00016986,2]
[363268354,1748655041064,-430.0,0.00016986,2]
[363268355,1748655041074,-969.95,0.00016986,2]
[363268356,1748655041083,-967.95,0.00016986,2]
[363268357,1748655041092,-430.0,0.00016986,2]
[363268358,1748655041101,-430.0,0.00016986,2]
[363268359,1748655041110,-430.0,0.00016986,2]
[363268360,1748655041119,-1081.46,0.00016986,2]
[363268361,1748655041129,-1861.23,0.00016986,2]
[363268362,1748655041138,-430.0,0.00016986,2]
[363268363,1748655041147,-91593.15449205,0.00017,2]
[363268364,1748655041157,-437.28126419,0.0001725,2]
[363268365,1748655041166,-500.0,0.0001725,2]
[363268366,1748655041176,-500.0,0.00017256,2]
[363268367,1748655041186,-500.0,0.00017257,2]
[363268368,1748655041195,-1000.0,0.00017259,2]
[363268369,1748655041205,-203.04515381,0.00017259,2]
[363268370,1748655041214,-430.0,0.00017259,2]
[363268371,1748655041224,-430.0,0.00017259,2]
[363268372,1748655041233,-1621.26,0.00017259,2]
[363268373,1748655041243,-430.0,0.00017259,2]
[363268374,1748655041252,-430.0,0.00017259,2]
[363268375,1748655041262,-548.33,0.00017259,2]
[363268376,1748655041271,-1039.91,0.00017259,2]
[363268377,1748655041280,-430.0,0.00017259,2]
[363268378,1748655041290,-830.97,0.00017259,2]
[363268379,1748655041299,-430.0,0.0001726,2]
[363268380,1748655041309,-430.0,0.0001726,2]
[363268381,1748655041319,-430.0,0.0001726,2]
[363268382,1748655041328,-430.0,0.0001726,2]
[363268383,1748655041337,-1079.83,0.0001726,2]
[363268384,1748655041347,-430.0,0.0001726,2]
[363268385,1748655041356,-731.92,0.0001726,2]
[363268386,1748655041366,-430.0,0.0001726,2]
[363268387,1748655041375,-430.0,0.0001726,2]
[363268388,1748655041385,-1192.23,0.0001726,2]
[363268389,1748655041395,-467.66,0.0001726,2]
[363268390,1748655041404,-430.0,0.0001726,2]
[363268391,1748655041413,-1386.76,0.0001726,2]
[363268392,1748655041423,-430.0,0.0001726,2]
[363268393,1748655041433,-822.1,0.0001726,2]
[363268394,1748655041442,-430.0,0.0001726,2]
[363268395,1748655041452,-447.59,0.0001726,2]
[363268396,1748655041461,-430.0,0.0001726,2]
[363268397,1748655041471,-2177.62,0.0001726,2]
[363268398,1748655041481,-430.0,0.0001726,2]
[363268399,1748655041493,-430.0,0.0001726,2]
[363268400,1748655041502,-514.27,0.0001726,2]
[363268401,1748655041512,-2258.91,0.0001726,2]
[363268402,1748655041522,-1584.95,0.0001726,2]
[363268403,1748655041532,-430.0,0.0001726,2]
[363268404,1748655041544,-1831.98,0.0001726,2]
[363268405,1748655041554,-430.0,0.0001726,2]
[363268406,1748655041563,-430.0,0.0001726,2]
[363268407,1748655041572,-855.96,0.0001726,2]
[363268408,1748655041582,-858.06,0.0001726,2]
[363268409,1748655041592,-673.8,0.0001726,2]
[363268410,1748655041601,-430.0,0.0001726,2]
[363268411,1748655041611,-430.0,0.0001726,2]
[363268412,1748655041620,-430.0,0.0001726,2]
[363268413,1748655041630,-430.0,0.0001726,2]
[363268414,1748655041640,-430.0,0.0001726,2]
[363268415,1748655041649,-430.0,0.0001726,2]
[363268416,1748655041658,-969.95,0.0001726,2]
[363268417,1748655041667,-967.95,0.0001726,2]
[363268418,1748655041677,-430.0,0.0001726,2]
[363268419,1748655041686,-378.10920807,0.0001726,2]
[363268420,1748655041695,-430.0,0.0001726,2]
[363268421,1748655041704,-1081.46,0.0001726,2]
[363268422,1748655041713,-1861.23,0.0001726,2]
[363268423,1748655041723,-430.0,0.0001726,2]
[363268424,1748655041733,-294.50298874,0.00017334,2]
[363268425,1748655041743,-627.47061978,0.00017336,2]
[363268426,1748655041752,-368.83963352,0.00017418,2]
[363268427,1748655041761,-842.5625,0.00017428,2]
[363268428,1748655041771,-423.39538199,0.00017428,2]
[363268429,1748655041782,-229.30959854,0.00017428,2]
[363268430,1748655041791,-160.0,0.00017428,2]
[363268431,1748655041800,-160.0,0.00017428,2]
[363268432,1748655041809,-12663.11115519,0.00017428,2]
[363268433,1748655041819,-212.7380601,0.00017428,2]
[363268434,1748655041828,-160.0,0.00017428,2]
[363268435,1748655041837,-160.0,0.00017435,2]
[363268436,1748655041846,-430.0,0.00017533,2]
[363268437,1748655041856,-430.0,0.00017533,2]
[363268438,1748655041865,-1621.26,0.00017533,2]
[363268439,1748655041875,-430.0,0.00017533,2]
[363268440,1748655041884,-430.0,0.00017533,2]
[363268441,1748655041894,-548.33,0.00017533,2]
[363268442,1748655041903,-1039.91,0.00017533,2]
[363268443,1748655041913,-430.0,0.00017533,2]
[363268444,1748655041922,-830.97,0.00017533,2]
[363268445,1748655041931,-430.0,0.00017534,2]
[363268446,1748655041940,-430.0,0.00017534,2]
[363268447,1748655041950,-430.0,0.00017534,2]
[363268448,1748655041959,-430.0,0.00017534,2]
[363268449,1748655041968,-1079.83,0.00017534,2]
[363268450,1748655041978,-430.0,0.00017534,2]
[363268451,1748655041996,-731.92,0.00017534,2]
[363268452,1748655042005,-430.0,0.00017534,2]
[363268453,1748655042015,-1192.23,0.00017534,2]
[363268454,1748655042023,-430.0,0.00017534,2]
[363268455,1748655042033,-1386.76,0.00017534,2]
[363268456,1748655042042,-430.0,0.00017534,2]
[363268457,1748655042051,-822.1,0.00017534,2]
[363268458,1748655042061,-430.0,0.00017534,2]
[363268459,1748655042070,-447.59,0.00017534,2]
[363268460,1748655042079,-430.0,0.00017534,2]
[363268461,1748655042088,-2177.62,0.00017534,2]
[363268462,1748655042098,-430.0,0.00017534,2]
[363268463,1748655042107,-430.0,0.00017534,2]
[363268464,1748655042116,-514.27,0.00017534,2]
[363268465,1748655042125,-2258.91,0.00017534,2]
[363268466,1748655042135,-1584.95,0.00017534,2]
[363268467,1748655042144,-430.0,0.00017534,2]
[363268468,1748655042153,-1831.98,0.00017534,2]
[363268469,1748655042162,-430.0,0.00017534,2]
[363268470,1748655042172,-430.0,0.00017534,2]
[363268471,1748655042181,-855.96,0.00017534,2]
[363268472,1748655042191,-858.06,0.00017534,2]
[363268473,1748655042200,-673.8,0.00017534,2]
[363268474,1748655042210,-430.0,0.00017534,2]
[363268475,1748655042220,-430.0,0.00017534,2]
[363268476,1748655042229,-430.0,0.00017534,2]
[363268477,1748655042241,-430.0,0.00017534,2]
[363268478,1748655042250,-430.0,0.00017534,2]
[363268479,1748655042260,-430.0,0.00017534,2]
[363268480,1748655042269,-969.95,0.00017534,2]
[363268481,1748655042278,-967.95,0.00017534,2]
[363268482,1748655042287,-443.16292505,0.00017534,2]
[363268483,1748655042297,-430.0,0.00017534,2]
[363268484,1748655042306,-1081.46,0.00017534,2]
[363268485,1748655042315,-1861.23,0.00017534,2]
[363268486,1748655042324,-430.0,0.00017534,2]
[363268487,1748655042334,-205.87054641,0.000176,2]
[363268488,1748655042343,-599.45805783,0.00017702,2]
[363268489,1748655042352,-500.0,0.00017798,2]
[363268490,1748655042362,-1000.0,0.00017805,2]
[363268491,1748655042371,-430.0,0.00017807,2]
[363268492,1748655042381,-430.0,0.00017807,2]
[363268493,1748655042392,-1621.26,0.00017807,2]
[363268494,1748655042402,-430.0,0.00017807,2]
[363268495,1748655042412,-430.0,0.00017807,2]
[363268496,1748655042421,-548.33,0.00017807,2]
[363268497,1748655042431,-1039.91,0.00017807,2]
[363268498,1748655042440,-430.0,0.00017807,2]
[363268499,1748655042450,-830.97,0.00017807,2]
[363268500,1748655042459,-430.0,0.00017808,2]
[363268501,1748655042468,-470.58,0.00017808,2]
[363268502,1748655042477,-430.0,0.00017808,2]
[363268503,1748655042488,-430.0,0.00017808,2]
[363268504,1748655042498,-1079.83,0.00017808,2]
[363268505,1748655042507,-430.0,0.00017808,2]
[363268506,1748655042516,-731.92,0.00017808,2]
[363268507,1748655042526,-430.0,0.00017808,2]
[363268508,1748655042540,-1192.23,0.00017808,2]
[363268509,1748655042550,-430.0,0.00017808,2]
[363268510,1748655042559,-1069.62333313,0.00017808,2]
[363268511,1748655042710,-317.13666687,0.00017808,2]
[363268512,1748655042720,-430.0,0.00017808,2]
[363268513,1748655042729,-822.1,0.00017808,2]
[363268515,1748655042745,-430.0,0.00017808,2]
[363268516,1748655042755,-447.59,0.00017808,2]
[363268518,1748655042764,-430.0,0.00017808,2]
[363268520,1748655042774,-2177.62,0.00017808,2]
[363268522,1748655042783,-430.0,0.00017808,2]
[363268524,1748655042797,-430.0,0.00017808,2]
[363268525,1748655042807,-514.27,0.00017808,2]
[363268526,1748655042816,-1756.09283343,0.00017808,2]
[363268544,1748655047106,-500.0,0.0001671,2]
[363268545,1748655047116,-500.0,0.0001671,2]
[363268546,1748655047127,-500.0,0.0001671,2]
[363268547,1748655047136,-437.47625169,0.00016711,2]
[363268548,1748655047145,-304.75142015,0.00016711,2]
[363268549,1748655047156,-488.39221669,0.00016711,2]
[363268550,1748655047165,-160.0,0.00017424,2]
[363268551,1748655047174,-502.81716657,0.00017808,2]
[363268552,1748655047183,-1584.95,0.00017808,2]
[363268553,1748655047193,-430.0,0.00017808,2]
[363268554,1748655047202,-1831.98,0.00017808,2]
[363268555,1748655047211,-373.28,0.00017808,2]
[363268556,1748655047220,-855.96,0.00017808,2]
[363268557,1748655047230,-858.06,0.00017808,2]
[363268558,1748655047241,-673.8,0.00017808,2]
[363268559,1748655047251,-430.0,0.00017808,2]
[363268560,1748655047260,-430.0,0.00017808,2]
[363268561,1748655047270,-430.0,0.00017808,2]
[363268562,1748655047280,-430.0,0.00017808,2]
[363268563,1748655047289,-430.0,0.00017808,2]
[363268564,1748655047299,-274.45070652,0.00017808,2]
[363268565,1748655047308,-357.92650956,0.00017808,2]
[363268566,1748655047321,-612.02349044,0.00017808,2]
[363268567,1748655047330,-967.95,0.00017808,2]
[363268568,1748655047340,-430.0,0.00017808,2]
[363268569,1748655047349,-1081.46,0.00017808,2]
[363268570,1748655047358,-1861.23,0.00017808,2]
[363268571,1748655047367,-430.0,0.00017808,2]
[363268572,1748655047376,-599.45805783,0.00017867,2]
[363268573,1748655047385,-3974.59309816,0.000179,2]
[363268574,1748655047394,-1000.0,0.0001795,2]
[363268575,1748655047403,-1000.0,0.0001795,7]
[363268576,1748655047412,-1000.0,0.0001795,7]
[363268577,1748655047422,-420.0,0.00017961,2]
[363268578,1748655047431,-207.4,0.00017985,2]
[363268579,1748655047442,-300.0,0.00017985,2]
[363268580,1748655047452,-300.0,0.00017985,2]
[363268581,1748655047462,-300.0,0.00017985,2]
[363268582,1748655047471,-300.0,0.00017985,2]
[363268583,1748655047480,-300.0,0.00017985,2]
[363268584,1748655047492,-300.0,0.00017985,2]
[363268585,1748655047502,-300.0,0.00017985,2]
[363268586,1748655047511,-300.0,0.00017985,2]
[363268587,1748655047521,-300.0,0.00017985,2]
[363268588,1748655047531,-300.0,0.00017985,2]
[363268589,1748655047543,-5000.0,0.00017985,2]
[363268590,1748655047552,-300.0,0.00017985,2]
[363268591,1748655047561,-300.0,0.00017985,2]
[363268592,1748655047571,-300.0,0.00017985,2]
[363268593,1748655047580,-300.0,0.00017985,2]
[363268594,1748655047589,-300.0,0.00017985,2]
[363268595,1748655047599,-24618.66178571,0.00018,2]
[363268627,1748655923271,208.083883,0.00013699,2]
[363268628,1748655947101,-759.1869374,0.0001577,2]
[363268629,1748655947122,-5051.8846105,0.00016253,2]
[363268630,1748655947143,-300.0,0.00016339,2]
[363268631,1748655947164,-311499.8195961,0.0001634,2]
[363268632,1748655955082,-22325.66554741,0.0001634,2]
[363268635,1748656003092,-277.46876441,0.00016334,2]
[363268636,1748656003113,-338.70708683,0.00016334,2]
[363268637,1748656003136,-300.0,0.00016339,2]
[363268638,1748656003160,-500.0,0.00016339,2]
[363268639,1748656003182,-333.94486985,0.00016339,2]
[363268640,1748656003206,-500.0,0.00016339,2]
[363268641,1748656003228,-500.0,0.00016339,2]
[363268642,1748656003253,-500.0,0.00016339,2]
[363268643,1748656003276,-500.0,0.00016339,2]
[363268644,1748656003299,-555.81711667,0.00016339,2]
[363268645,1748656003323,-500.0,0.00016339,2]
[363268646,1748656003347,-500.0,0.00016339,2]
[363268647,1748656003368,-500.0,0.00016339,2]
[363268648,1748656003390,-236.86827948,0.00016339,2]
[363268649,1748656003412,-500.0,0.00016339,2]
[363268650,1748656003434,-201.8259243,0.00016339,2]
[363268651,1748656003455,-567.17095363,0.00016339,2]
[363268652,1748656003481,-500.0,0.00016339,2]
[363268653,1748656003503,-7155.15381383,0.0001634,2]
[363268654,1748656026153,-300.0,0.00016338,2]
[363268655,1748656026178,-500.0,0.00016339,2]
[363268656,1748656026206,-500.0,0.00016339,2]
[363268657,1748656026230,-500.0,0.00016339,2]
[363268658,1748656026257,-426.5234067,0.00016339,2]
[363268659,1748656026282,-500.0,0.00016339,2]
[363268660,1748656026306,-500.0,0.00016339,2]
[363268661,1748656026331,-500.0,0.00016339,2]
[363268662,1748656026354,-500.0,0.00016339,2]
[363268663,1748656026379,-500.0,0.00016339,2]
[363268664,1748656026400,-74494.3649813,0.0001634,2]
[363268665,1748656026430,-584524.99606136,0.0001634,2]
[363268666,1748656026452,-1200.0,0.00016434,2]
[363268667,1748656026473,-300.0,0.00016435,2]